bitfinex/quotes_BTCUSD_20251009
["timestamp","ask_amount","ask_price","bid_price","bid_amount"]
[1760030224541,1.39378612,120280.0,120270.0,0.25330636]
[1760030224749,1.44279612,120280.0,120270.0,0.14407636]
[1760030225211,1.15214612,120280.0,120270.0,0.14407636]
[1760030225424,1.39378612,120280.0,120270.0,0.14407636]
[1760030225870,1.15165612,120280.0,120270.0,0.20665636]
[1760030226093,1.15165612,120280.0,120270.0,0.25330636]
[1760030226238,1.39329612,120280.0,120270.0,0.25330636]
[1760030226836,1.39329612,120280.0,120270.0,0.51107886]
[1760030227066,1.39329612,120280.0,120270.0,0.34478636]
[1760030227283,0.98537744,120280.0,120270.0,1.05325644]
[1760030227488,1.39329612,120280.0,120270.0,1.05325644]
[1760030229725,1.22701744,120280.0,120270.0,1.05325644]
[1760030229961,1.39325612,120280.0,120270.0,1.05325644]
[1760030230203,1.15165612,120280.0,120270.0,1.05325644]
[1760030230439,0.98537744,120280.0,120270.0,1.05325644]
[1760030232482,0.98537744,120280.0,120270.0,1.63481644]
[1760030233823,0.98537744,120280.0,120270.0,1.63581644]
[1760030234479,0.98537744,120280.0,120270.0,1.63681644]
[1760030234696,0.96044134,120280.0,120270.0,1.42540834]
[1760030234961,0.93550524,120280.0,120270.0,1.75340834]
[1760030235326,0.91056914,120280.0,120270.0,1.42540834]
[1760030235329,0.88563304,120280.0,120270.0,1.51184834]
[1760030235528,0.86069694,120280.0,120270.0,1.75340834]
[1760030235754,0.83576084,120280.0,120270.0,1.51184834]
[1760030235929,0.81082474,120280.0,120270.0,1.51184834]
[1760030236117,0.78588864,120280.0,120270.0,1.75340834]
[1760030236562,0.73601644,120280.0,120270.0,1.75336834]
[1760030236770,0.71108034,120280.0,120270.0,1.75336834]
[1760030236982,0.68614424,120280.0,120270.0,1.75336834]
[1760030237205,0.66120814,120280.0,120270.0,1.75336834]
[1760030237402,0.63627204,120280.0,120270.0,1.75336834]
[1760030237547,0.61133594,120280.0,120270.0,1.42540834]
[1760030237779,0.58639984,120280.0,120270.0,1.75336834]
[1760030238035,0.56147161,120280.0,120270.0,1.75336834]
[1760030238234,0.53654338,120280.0,120270.0,1.75336834]
[1760030238364,0.51161515,120280.0,120270.0,1.75336834]
[1760030238566,0.48668692,120280.0,120270.0,1.75336834]
[1760030238809,0.46175869,120280.0,120270.0,1.42540834]
[1760030238958,0.43683046,120280.0,120270.0,1.75332834]
[1760030239158,0.41190223,120280.0,120270.0,1.75332834]
[1760030239374,0.36204577,120280.0,120270.0,1.75332834]
[1760030239569,0.33711754,120280.0,120270.0,1.75332834]
[1760030239781,0.31218931,120280.0,120270.0,1.51184834]
[1760030240187,0.31218931,120280.0,120270.0,1.75332834]
[1760030240448,0.31218931,120280.0,120270.0,1.51184834]
[1760030240660,0.31218931,120280.0,120270.0,1.75332834]
[1760030241431,0.31218931,120280.0,120270.0,1.51184834]
[1760030241652,0.31218931,120280.0,120270.0,1.75332834]
[1760030242873,0.31218931,120280.0,120270.0,1.42540834]
[1760030243082,0.31218931,120280.0,120270.0,1.75328834]
[1760030243598,0.31218931,120280.0,120270.0,1.66684834]
[1760030243806,0.31218931,120280.0,120270.0,1.42540834]
[1760030244217,0.31218931,120280.0,120270.0,1.75328834]
[1760030244427,0.31218931,120280.0,120270.0,1.51184834]
[1760030244640,0.31218931,120280.0,120270.0,1.75328834]
[1760030245747,0.31218931,120280.0,120270.0,1.42540834]
[1760030245970,0.31218931,120280.0,120270.0,1.48165644]
[1760030246182,0.31218931,120280.0,120270.0,1.72309644]
[1760030246613,0.31218931,120280.0,120270.0,1.48165644]
[1760030246801,0.31218931,120280.0,120270.0,1.72309644]
[1760030247480,0.31218931,120280.0,120270.0,1.63665644]
[1760030247705,0.31218931,120280.0,120270.0,1.61597094]
[1760030248195,0.31218931,120280.0,120270.0,1.28817094]
[1760030248427,0.31218931,120280.0,120270.0,1.61597094]
[1760030248886,0.31218931,120280.0,120270.0,1.37457094]
[1760030249126,0.31218931,120280.0,120270.0,1.03457094]
[1760030249356,0.47846799,120280.0,120270.0,0.94817094]
[1760030249582,0.31218931,120280.0,120270.0,1.18757094]
[1760030250019,0.31218931,120280.0,120270.0,1.18857094]
[1760030250235,0.31218931,120280.0,120270.0,1.18757094]
[1760030250236,0.47846799,120280.0,120270.0,1.18757094]
[1760030250460,0.31218931,120280.0,120270.0,1.18857094]
[1760030251832,0.31218931,120280.0,120270.0,0.94717094]
[1760030252061,0.31218931,120280.0,120270.0,1.52853094]
[1760030252934,0.31218931,120280.0,120270.0,1.28717094]
[1760030253150,0.31218931,120280.0,120270.0,1.52853094]
[1760030255133,0.31218931,120280.0,120270.0,1.28717094]
[1760030255356,0.31218931,120280.0,120270.0,1.52853094]
[1760030255995,0.31218931,120280.0,120270.0,1.61493094]
[1760030256444,0.31218931,120280.0,120270.0,1.37357094]
[1760030256669,0.31218931,120280.0,120270.0,1.64508284]
[1760030256929,0.31218931,120280.0,120270.0,1.64504284]
[1760030257603,0.31218931,120280.0,120270.0,1.40372284]
[1760030257824,0.31218931,120280.0,120270.0,1.64504284]
[1760030259160,0.31218931,120280.0,120270.0,1.40372284]
[1760030259385,0.31218931,120280.0,120270.0,1.64504284]
[1760030259612,0.31218931,120280.0,120270.0,1.40372284]
[1760030259875,0.31218931,120280.0,120270.0,1.64504284]
[1760030260709,0.31218931,120280.0,120270.0,1.31732284]
[1760030261399,0.31218931,120280.0,120270.0,1.64504284]
[1760030261607,0.31218931,120280.0,120270.0,2.12878202]
[1760030262054,0.31218931,120280.0,120270.0,2.04238202]
[1760030262256,0.31218931,120280.0,120270.0,1.85735012]
[1760030262471,0.31218931,120280.0,120270.0,1.5510597]
[1760030262894,0.31218931,120280.0,120270.0,1.7923397]
[1760030263116,0.31218931,120280.0,120270.0,1.5510597]
[1760030263344,0.31218931,120280.0,120270.0,1.7923397]
[1760030263550,0.31218931,120280.0,120270.0,1.61492269]
[1760030263801,0.31218931,120280.0,120270.0,1.37364269]
[1760030264013,0.31218931,120280.0,120270.0,1.64507459]
[1760030264458,0.31218931,120280.0,120270.0,1.64407459]
[1760030264657,0.31218931,120280.0,120270.0,1.64507459]
[1760030265140,0.31218931,120280.0,120270.0,1.64407459]
[1760030265355,0.31218931,120280.0,120270.0,1.64507459]
[1760030266029,0.31218931,120280.0,120270.0,1.61488269]
[1760030266469,0.31218931,120280.0,120270.0,1.52848269]
[1760030266679,0.31218931,120280.0,120270.0,1.61488269]
[1760030266888,0.31218931,120280.0,120270.0,1.37364269]
[1760030267109,0.31218931,120280.0,120270.0,1.61488269]
[1760030267372,0.31218931,120280.0,120270.0,1.28724269]
[1760030267579,0.31218931,120280.0,120270.0,1.61444183]
[1760030267790,0.31218931,120280.0,120270.0,1.28680183]
[1760030267976,0.31218931,120280.0,120270.0,1.61444183]
[1760030268400,0.31222931,120280.0,120270.0,1.61444183]
[1760030268814,0.31222931,120280.0,120270.0,1.37320183]
[1760030268931,0.31222931,120280.0,120270.0,1.61444183]
[1760030269591,0.31222931,120280.0,120270.0,1.37320183]
[1760030270027,0.31222931,120280.0,120270.0,1.61444183]
[1760030270229,0.31222931,120280.0,120270.0,1.28680183]
[1760030270445,0.31222931,120280.0,120270.0,0.94680183]
[1760030270642,0.51615799,120280.0,120270.0,0.68902933]
[1760030270874,0.51615799,120280.0,120270.0,0.3858355]
[1760030271093,0.51615799,120280.0,120270.0,0.82099933]
[1760030271268,0.51615799,120280.0,120270.0,1.04881183]
[1760030271466,0.51615799,120280.0,120270.0,1.04781183]
[1760030272099,0.51615799,120280.0,120270.0,0.80661183]
[1760030272286,0.51615799,120280.0,120270.0,1.04781183]
[1760030272523,0.51615799,120280.0,120270.0,1.09471183]
[1760030273184,0.51566799,120280.0,120270.0,1.09471183]
[1760030273398,0.51615799,120280.0,120270.0,0.92841933]
[1760030273670,0.51566799,120280.0,120270.0,0.68721933]
[1760030273883,0.51566799,120280.0,120270.0,0.85351183]
[1760030274103,0.51615799,120280.0,120270.0,0.68721933]
[1760030274328,0.51615799,120280.0,120270.0,0.81999933]
[1760030274773,0.56516799,120280.0,120270.0,0.1436355]
[1760030275233,0.80636799,120280.0,120270.0,0.08268121]
[1760030275668,0.56516799,120280.0,120270.0,0.08268121]
[1760030275894,0.80636799,120280.0,120270.0,0.08268121]
[1760030276346,0.16630633,120260.0,120250.0,0.11289254]
[1760030276568,0.40746633,120260.0,120250.0,0.08312206]
[1760030276788,0.16634783,120230.0,120220.0,0.30665328]
[1760030277007,0.20560783,120230.0,120220.0,1.05737917]
[1760030277201,0.25510783,120230.0,120220.0,0.62482563]
[1760030277507,0.25510783,120230.0,120220.0,0.78064946]
[1760030277728,0.25559783,120230.0,120220.0,0.33613235]
[1760030277948,0.25559783,120230.0,120220.0,0.33663798]
[1760030278163,0.49675783,120230.0,120220.0,0.33763798]
[1760030278376,0.25559783,120230.0,120220.0,0.33763798]
[1760030278562,0.49675783,120230.0,120220.0,0.33763798]
[1760030278788,0.49675783,120230.0,120220.0,0.33663798]
[1760030279027,0.25559783,120230.0,120220.0,0.33663798]
[1760030279243,0.49675783,120230.0,120220.0,0.33663798]
[1760030279457,0.49675783,120230.0,120220.0,0.25351592]
[1760030279666,0.56306701,120230.0,120220.0,0.25351592]
[1760030279877,0.49675783,120230.0,120220.0,0.25351592]
[1760030280106,0.49679783,120230.0,120220.0,0.25351592]
[1760030280312,0.25563783,120230.0,120220.0,0.25351592]
[1760030280527,0.49630783,120230.0,120220.0,0.25351592]
[1760030280736,0.25514783,120230.0,120220.0,0.25351592]
[1760030280947,0.20564783,120230.0,120220.0,1.04658348]
[1760030281154,4e-05,120230.0,120220.0,1.13722348]
[1760030281608,0.16687783,120230.0,120220.0,0.33663798]
[1760030281822,0.21588783,120230.0,120220.0,0.57783798]
[1760030282037,0.21588783,120230.0,120220.0,0.29193798]
[1760030282249,0.24124,120230.0,120220.0,0.83552181]
[1760030282455,0.16638783,120230.0,120220.0,0.65735965]
[1760030282688,4e-05,120230.0,120220.0,1.09252348]
[1760030283105,0.16638783,120230.0,120220.0,1.09252348]
[1760030283332,4e-05,120230.0,120220.0,1.10047348]
[1760030283552,4e-05,120230.0,120220.0,1.34167348]
[1760030283802,4e-05,120230.0,120220.0,1.68167348]
[1760030284436,4e-05,120230.0,120220.0,1.44047348]
[1760030284884,4e-05,120230.0,120220.0,1.68167348]
[1760030285950,4e-05,120230.0,120220.0,1.44047348]
[1760030286161,4e-05,120230.0,120220.0,0.29193798]
[1760030286162,0.19578783,120230.0,120220.0,0.29193798]
[1760030286371,0.24451783,120230.0,120220.0,0.29193798]
[1760030286609,0.19578783,120230.0,120220.0,0.35808798]
[1760030286813,0.19578783,120230.0,120220.0,0.83851181]
[1760030287698,0.02944,120230.0,120220.0,0.83851181]
[1760030287959,0.02866,120230.0,120220.0,1.10346348]
[1760030288184,4e-05,120230.0,120220.0,1.10346348]
[1760030288403,0.16638783,120230.0,120220.0,1.10346348]
[1760030288598,0.16687783,120230.0,120220.0,1.07967181]
[1760030288813,0.21588783,120230.0,120220.0,0.29193798]
[1760030289246,0.21588783,120230.0,120220.0,0.20881592]
[1760030289685,0.45704783,120230.0,120220.0,0.20881592]
[1760030289893,0.60689005,120230.0,120220.0,0.20881592]
[1760030290314,0.27929005,120230.0,120220.0,0.20881592]
[1760030290525,0.94689005,120230.0,120220.0,0.20881592]
[1760030290937,0.97704195,120230.0,120220.0,0.20881592]
[1760030291165,0.97804195,120230.0,120220.0,0.20881592]
[1760030292446,1.17204578,120230.0,120220.0,0.20881592]
[1760030292655,1.41320578,120230.0,120220.0,0.20881592]
[1760030294130,1.08560578,120230.0,120220.0,0.20881592]
[1760030294347,1.08560578,120230.0,120190.0,1e-08]
[1760030294348,0.97170508,120200.0,120190.0,1e-08]
[1760030294558,0.86264935,120200.0,120190.0,0.00015151]
[1760030294777,0.58501935,120200.0,120190.0,0.00015151]
[1760030295004,0.67149935,120200.0,120190.0,0.00015151]
[1760030295214,0.33149935,120200.0,120190.0,0.00015151]
[1760030295447,0.57265935,120200.0,120190.0,0.00015151]
[1760030295654,0.24501935,120200.0,120190.0,0.00015151]
[1760030296312,0.48617935,120200.0,120190.0,0.00015151]
[1760030296747,0.56257684,120200.0,120190.0,0.00015151]
[1760030296955,0.57265935,120200.0,120190.0,0.00015151]
[1760030298030,0.24501935,120200.0,120190.0,0.00015151]
[1760030298232,0.57265935,120200.0,120190.0,0.00015151]
[1760030298915,0.61190949,120200.0,120190.0,0.00015151]
[1760030299119,1.03190629,120200.0,120190.0,0.00015151]
[1760030300265,1.03190629,120200.0,120190.0,0.0017184]
[1760030300471,0.70426629,120200.0,120190.0,0.0017184]
[1760030300682,1.03190629,120200.0,120190.0,0.0017184]
[1760030300894,0.94542629,120200.0,120190.0,0.0017184]
[1760030301101,0.58501935,120200.0,120190.0,0.0017184]
[1760030301302,0.48617935,120200.0,120190.0,0.0017184]
[1760030301508,0.57265935,120200.0,120190.0,0.0017184]
[1760030301712,0.57265935,120200.0,120190.0,0.0015346]
[1760030302542,0.33149935,120200.0,120190.0,0.0015346]
[1760030302763,0.57265935,120200.0,120190.0,0.0015346]
[1760030303201,0.05634019,120200.0,120190.0,0.75237368]
[1760030303420,0.2782955,120210.0,120190.0,0.89622368]
[1760030303421,0.02494,120210.0,120190.0,0.89622368]
[1760030303643,0.19131933,120210.0,120200.0,0.56354589]
[1760030303881,0.19131933,120210.0,120200.0,0.62969589]
[1760030303882,0.43247933,120210.0,120200.0,0.62969589]
[1760030304589,0.19131933,120210.0,120200.0,0.79608524]
[1760030304805,0.43247933,120210.0,120200.0,0.62969589]
[1760030305029,0.0218,120220.0,120210.0,0.1663755]
[1760030305204,0.19132783,120230.0,120220.0,0.16636167]
[1760030305431,0.16638783,120230.0,120220.0,0.89464756]
[1760030305877,0.40750783,120230.0,120220.0,0.72828589]
[1760030306288,0.16638783,120230.0,120220.0,0.72828589]
[1760030306505,0.40750783,120230.0,120220.0,0.89464756]
[1760030306959,0.16638783,120230.0,120220.0,0.89464756]
[1760030307184,0.40750783,120230.0,120220.0,0.89464756]
[1760030307401,0.40750783,120230.0,120220.0,0.62969589]
[1760030307631,0.43294783,120230.0,120220.0,0.62969589]
[1760030307854,0.43294783,120230.0,120220.0,0.51828589]
[1760030308055,0.19182783,120230.0,120220.0,0.51828589]
[1760030308336,0.43290783,120230.0,120220.0,0.51828589]
[1760030308544,0.02523,120230.0,120220.0,0.79605756]
[1760030308762,4e-05,120230.0,120220.0,0.89464756]
[1760030308970,4e-05,120230.0,120220.0,1.23464756]
[1760030309688,4e-05,120230.0,120220.0,1.34168782]
[1760030310112,4e-05,120230.0,120220.0,1.58276782]
[1760030310603,4e-05,120230.0,120220.0,1.66924782]
[1760030312114,4e-05,120230.0,120220.0,1.34168782]
[1760030312340,4e-05,120230.0,120220.0,1.66924782]
[1760030312543,0.16632106,120250.0,120240.0,0.16633399]
[1760030312747,0.1664373,120260.0,120250.0,0.54220409]
[1760030312947,0.08774503,120270.0,120260.0,0.16630633]
[1760030313146,0.49507753,120270.0,120260.0,0.73691615]
[1760030313817,0.4291625,120270.0,120260.0,0.62537664]
[1760030314058,0.4578125,120270.0,120260.0,0.08243519]
[1760030314267,0.4291625,120270.0,120260.0,0.08243519]
[1760030314471,0.43215386,120270.0,120260.0,0.14798519]
[1760030314690,0.19111386,120270.0,120260.0,0.14798519]
[1760030317175,0.00299136,120270.0,120260.0,1.33754561]
[1760030317617,0.00299136,120270.0,120260.0,1.64017583]
[1760030318762,0.00299136,120270.0,120260.0,1.72665583]
[1760030318967,0.00299136,120270.0,120260.0,1.72765583]
[1760030319190,0.00299136,120270.0,120260.0,1.72865583]
[1760030320073,0.00299136,120270.0,120260.0,1.40121583]
[1760030320284,0.00299136,120270.0,120260.0,1.72857583]
[1760030321038,0.00299136,120270.0,120260.0,1.64213583]
[1760030321261,0.00299136,120270.0,120260.0,1.72857583]
[1760030321571,0.00299136,120270.0,120260.0,1.73857583]
[1760030321769,0.00299136,120270.0,120260.0,1.49765583]
[1760030321976,0.00299136,120270.0,120260.0,1.73853583]
[1760030322801,0.00299136,120270.0,120260.0,1.76349341]
[1760030323002,0.00299136,120270.0,120260.0,1.52261341]
[1760030323208,0.00299136,120270.0,120260.0,1.79364531]
[1760030323995,0.31222931,120280.0,120260.0,1.79364531]
[1760030323996,0.31222931,120280.0,120270.0,0.1662925]
[1760030324214,0.06619503,120310.0,120300.0,0.16625103]
[1760030324423,0.06619503,120310.0,120300.0,1.39975209]
[1760030324630,0.23240462,120330.0,120320.0,0.1662234]
[1760030324839,0.23240462,120330.0,120320.0,0.99814955]
[1760030325067,0.23240462,120330.0,120320.0,1.23898955]
[1760030325269,0.37026135,120340.0,120320.0,1.07276615]
[1760030325518,0.000506,120330.0,120320.0,0.85864816]
[1760030325725,0.000506,120330.0,120320.0,0.86777406]
[1760030325927,0.000506,120330.0,120320.0,0.96740406]
[1760030326144,0.000506,120330.0,120320.0,0.72656406]
[1760030326312,0.000506,120330.0,120320.0,1.05052612]
[1760030326721,0.000506,120330.0,120320.0,1.59273021]
[1760030326930,0.000506,120330.0,120320.0,1.59373021]
[1760030327099,0.000506,120330.0,120320.0,1.35289021]
[1760030327506,0.000506,120330.0,120320.0,1.59369021]
[1760030329843,0.000506,120330.0,120320.0,1.35289021]
[1760030330067,0.000506,120330.0,120320.0,2.1660062]
[1760030330281,0.0036354,120330.0,120320.0,2.19095072]
[1760030330520,0.0036354,120330.0,120320.0,1.95019072]
[1760030330747,1.0002,120360.0,120350.0,0.16618196]
[1760030330957,1.0002,120360.0,120350.0,1.48466811]
[1760030330958,1.0003517,120360.0,120350.0,1.48466811]
[1760030331171,1.0003517,120360.0,120350.0,1.34357811]
[1760030331396,1.0003517,120360.0,120350.0,1.58429811]
[1760030331908,1.0003517,120360.0,120350.0,1.64764195]
[1760030332943,1.0003517,120360.0,120350.0,1.64864195]
[1760030333594,1.0003517,120360.0,120350.0,1.73500195]
[1760030334623,1.0003517,120360.0,120350.0,1.75994127]
[1760030334844,1.0003517,120360.0,120350.0,0.86571786]
[1760030335030,1.0003517,120360.0,120350.0,1.64856195]
[1760030335236,1.0003517,120360.0,120350.0,1.51926065]
[1760030335436,1.0003517,120360.0,120350.0,1.73496195]
[1760030335642,1.0003517,120360.0,120350.0,1.40792195]
[1760030335839,1.0003517,120360.0,120350.0,1.58517811]
[1760030336247,1.0003517,120360.0,120350.0,1.34457811]
[1760030336445,1.00191561,120360.0,120350.0,1.58517811]
[1760030337281,1.00191561,120360.0,120350.0,1.34457811]
[1760030337507,1.00191561,120360.0,120350.0,1.34357811]
[1760030337720,1.00191561,120360.0,120350.0,1.58417811]
[1760030337921,1.00191561,120360.0,120350.0,1.40631755]
[1760030338112,1.00191561,120360.0,120350.0,1.64691755]
[1760030338318,1.00191561,120360.0,120350.0,1.67185608]
[1760030338864,1.00191561,120360.0,120350.0,1.64791755]
[1760030339081,1.20195561,120360.0,120350.0,1.64787755]
[1760030339906,1.20195561,120360.0,120350.0,1.40731755]
[1760030340114,1.20195561,120360.0,120350.0,1.73427755]
[1760030341193,1.20195561,120360.0,120350.0,1.49371755]
[1760030341403,1.20195561,120360.0,120350.0,1.73423755]
[1760030341626,1.20195561,120360.0,120350.0,1.52386945]
[1760030341853,1.20195561,120360.0,120350.0,1.76438945]
[1760030342544,1.20195561,120360.0,120350.0,1.52386945]
[1760030342768,0.81699654,120360.0,120350.0,1.76438945]
[1760030342993,0.57745527,120360.0,120350.0,1.64886943]
[1760030343225,0.51771329,120360.0,120350.0,1.88938943]
[1760030343667,0.51771329,120360.0,120350.0,1.56246943]
[1760030344164,0.51771329,120360.0,120350.0,2.10886945]
[1760030344402,0.51771329,120360.0,120350.0,1.43746945]
[1760030344633,0.51771329,120360.0,120350.0,1.73415755]
[1760030345086,0.51771329,120360.0,120350.0,1.40731755]
[1760030345311,0.51771329,120360.0,120350.0,1.73515755]
[1760030345531,0.51771329,120360.0,120350.0,1.40831755]
[1760030345776,0.51771329,120360.0,120350.0,1.73515755]
[1760030346013,0.51771329,120360.0,120350.0,1.52382945]
[1760030346226,0.51771329,120360.0,120350.0,1.76430945]
[1760030346456,0.51771329,120360.0,120350.0,1.76426945]
[1760030346681,0.51771329,120360.0,120350.0,1.43646945]
[1760030346903,0.51771329,120360.0,120350.0,1.49267755]
[1760030347121,0.51771329,120360.0,120350.0,1.40631755]
[1760030347563,0.51771329,120360.0,120350.0,1.64775755]
[1760030347816,0.51771329,120360.0,120350.0,1.24113559]
[1760030348031,0.51771329,120360.0,120350.0,1.64775755]
[1760030348256,0.68388145,120360.0,120350.0,1.24013559]
[1760030348485,0.71652145,120360.0,120350.0,0.80050559]
[1760030348714,0.71652145,120360.0,120350.0,0.08312206]
[1760030348936,0.95647145,120360.0,120350.0,0.73988615]
[1760030349166,0.71603145,120360.0,120350.0,0.73988615]
[1760030349391,0.92432145,120360.0,120350.0,1.00535811]
[1760030349637,0.92432145,120360.0,120350.0,0.83917615]
[1760030350074,0.68388145,120360.0,120350.0,0.83917615]
[1760030350352,0.51771329,120360.0,120350.0,1.24575811]
[1760030350799,0.68388145,120360.0,120350.0,1.07957615]
[1760030351241,0.92428145,120360.0,120350.0,1.07957615]
[1760030352795,0.95643145,120360.0,120350.0,0.73988615]
[1760030353037,0.95692145,120360.0,120350.0,0.08312206]
[1760030353510,1.00593145,120360.0,120350.0,0.08312206]
[1760030353742,0.71652145,120360.0,120350.0,0.08312206]
[1760030353973,0.95692145,120360.0,120350.0,0.14940206]
[1760030354192,0.95692145,120360.0,120350.0,0.08312206]
[1760030354448,0.71652145,120360.0,120350.0,0.36386402]
[1760030354675,0.95643145,120360.0,120350.0,0.90606811]
[1760030354903,0.95643145,120360.0,120350.0,0.73988615]
[1760030355130,0.71603145,120360.0,120350.0,0.90606811]
[1760030355354,0.95643145,120360.0,120350.0,0.19768206]
[1760030355836,0.95643145,120360.0,120350.0,0.73988615]
[1760030356578,0.71603145,120360.0,120350.0,0.73988615]
[1760030356801,0.92428145,120360.0,120350.0,1.00535811]
[1760030357028,0.68388145,120360.0,120350.0,1.00535811]
[1760030357501,0.92424145,120360.0,120350.0,1.07953615]
[1760030357738,0.92424145,120360.0,120350.0,0.98024615]
[1760030357960,0.74085145,120360.0,120350.0,0.08312206]
[1760030358203,1.01378269,120360.0,120350.0,0.08312206]
[1760030358622,0.95706269,120360.0,120350.0,0.08312206]
[1760030359647,0.71670269,120360.0,120350.0,0.14940206]
[1760030359863,0.95706269,120360.0,120350.0,0.19768206]
[1760030360014,0.71645269,120360.0,120350.0,0.73988615]
[1760030360219,0.92424145,120360.0,120350.0,1.00535811]
[1760030360417,0.92424145,120360.0,120350.0,0.83917615]
[1760030360624,0.93188215,120360.0,120350.0,0.83917615]
[1760030360828,0.92424145,120360.0,120350.0,0.83917615]
[1760030361044,0.93188215,120360.0,120350.0,0.83917615]
[1760030361435,0.68388145,120360.0,120350.0,1.24571811]
[1760030361657,0.68388145,120360.0,120350.0,0.70351402]
[1760030361833,0.68388145,120360.0,120350.0,1.24571811]
[1760030363201,0.76553145,120360.0,120350.0,1.62532615]
[1760030363425,1.01349129,120360.0,120350.0,1.32344206]
[1760030363638,1.01349129,120360.0,120350.0,1.08312206]
[1760030364905,0.72367129,120360.0,120350.0,1.85778811]
[1760030365128,0.51771329,120360.0,120350.0,2.00535811]
[1760030365339,0.92420145,120360.0,120350.0,2.24567811]
[1760030366174,0.92420145,120360.0,120350.0,2.07949615]
[1760030366604,0.92469145,120360.0,120350.0,1.19768206]
[1760030366815,0.92469145,120360.0,120350.0,1.08312206]
[1760030366816,1.00585145,120360.0,120350.0,1.08312206]
[1760030367478,1.01476037,120360.0,120350.0,1.08312206]
[1760030367692,1.00585145,120360.0,120350.0,1.08312206]
[1760030368337,0.76553145,120360.0,120350.0,1.08312206]
[1760030368569,1.00581145,120360.0,120350.0,1.08312206]
[1760030369009,1.00581145,120360.0,120350.0,1.0]
[1760030369214,1.08580825,120360.0,120350.0,1.0]
[1760030369422,1.00581145,120360.0,120350.0,1.0]
[1760030373258,0.76553145,120360.0,120350.0,1.0]
[1760030373676,1.09221145,120360.0,120350.0,1.0]
[1760030374502,0.76553145,120360.0,120350.0,1.0]
[1760030374930,1.00577145,120360.0,120350.0,1.0]
[1760030375774,0.95776145,120360.0,120350.0,1.51806393]
[1760030376012,0.95776145,120360.0,120350.0,1.08312206]
[1760030376243,0.71752145,120360.0,120350.0,1.08312206]
[1760030376450,0.71752145,120360.0,120350.0,1.58170393]
[1760030376679,0.95776145,120360.0,120350.0,1.19333206]
[1760030376893,0.95776145,120360.0,120350.0,1.62827393]
[1760030377105,0.95676145,120360.0,120350.0,1.62827393]
[1760030377337,0.71652145,120360.0,120350.0,1.56463393]
[1760030377542,0.71652145,120360.0,120350.0,1.62827393]
[1760030377748,0.95676145,120360.0,120350.0,1.62827393]
[1760030378195,0.95676145,120360.0,120350.0,1.19333206]
[1760030378407,1.00577145,120360.0,120350.0,1.08312206]
[1760030380276,1.00577145,120360.0,120350.0,1.0]
[1760030380479,1.08676825,120360.0,120350.0,1.0]
[1760030380692,1.08672825,120360.0,120350.0,1.0]
[1760030381876,0.84652825,120360.0,120350.0,1.0]
[1760030382089,1.00673145,120360.0,120350.0,1.0]
[1760030383199,0.71752145,120360.0,120350.0,1.43494187]
[1760030383603,0.95772145,120360.0,120350.0,1.43494187]
[1760030383812,0.71752145,120360.0,120350.0,1.43494187]
[1760030384023,0.95772145,120360.0,120350.0,1.0]
[1760030384236,0.71752145,120360.0,120350.0,1.08312206]
[1760030384407,0.95768145,120360.0,120350.0,1.58170393]
[1760030385029,0.95768145,120360.0,120350.0,1.51806393]
[1760030385230,0.71752145,120360.0,120350.0,1.51806393]
[1760030385591,0.95768145,120360.0,120350.0,1.57968393]
[1760030385931,0.95768145,120360.0,120350.0,1.51806393]
[1760030386296,0.95668145,120360.0,120350.0,1.51806393]
[1760030386509,0.95668145,120360.0,120350.0,1.08312206]
[1760030386510,1.00569145,120360.0,120350.0,1.08312206]
[1760030386925,0.95668145,120360.0,120350.0,1.08312206]
[1760030387139,0.71652145,120360.0,120350.0,1.57968393]
[1760030387353,0.95619145,120360.0,120350.0,1.62773393]
[1760030387543,0.95768145,120360.0,120350.0,1.62773393]
[1760030388167,0.95668145,120360.0,120350.0,1.62773393]
[1760030388381,0.71652145,120360.0,120350.0,1.19279206]
[1760030388583,0.95668145,120360.0,120350.0,1.62773393]
[1760030388801,0.95664145,120360.0,120350.0,1.62773393]
[1760030389013,1.00565145,120360.0,120350.0,1.08312206]
[1760030389230,1.00455057,120360.0,120350.0,1.08312206]
[1760030392814,0.95554057,120360.0,120350.0,1.08312206]
[1760030393279,1.00451057,120360.0,120350.0,1.08312206]
[1760030393484,0.54925241,120360.0,120350.0,1.62773393]
[1760030393701,0.78884241,120360.0,120350.0,1.88507589]
[1760030393913,0.51661241,120360.0,120350.0,1.88507589]
[1760030394126,0.68278057,120360.0,120350.0,2.12515589]
[1760030394344,0.92286057,120360.0,120350.0,1.95897393]
[1760030395002,0.72286057,120360.0,120350.0,1.95897393]
[1760030395427,0.56444057,120360.0,120350.0,1.08312206]
[1760030395638,0.80452057,120360.0,120350.0,1.08312206]
[1760030396048,0.51560057,120360.0,120350.0,1.14474206]
[1760030396260,0.75466057,120360.0,120350.0,1.62773393]
[1760030396473,0.48278057,120360.0,120350.0,1.88507589]
[1760030396728,0.72282057,120360.0,120350.0,1.95893393]
[1760030396964,0.72282057,120360.0,120350.0,2.12511589]
[1760030397190,0.48278057,120360.0,120350.0,2.12511589]
[1760030397415,0.48278057,120360.0,120350.0,1.95893393]
[1760030397666,0.48523057,120360.0,120350.0,1.62773393]
[1760030397886,0.51696057,120360.0,120350.0,1.75810393]
[1760030398108,0.51696057,120360.0,120350.0,1.51806393]
[1760030398332,0.57343057,120360.0,120350.0,1.08312206]
[1760030398542,0.57343057,120360.0,120350.0,1.0]
[1760030398543,0.89346737,120360.0,120350.0,1.0]
[1760030399626,0.81347057,120360.0,120350.0,1.0]
[1760030399842,1.15347057,120360.0,120350.0,1.0]
[1760030400093,1.58841244,120360.0,120350.0,0.62092339]
[1760030400330,1.4616464,120360.0,120350.0,0.22768094]
[1760030400552,1.26670453,120360.0,120350.0,0.09045668]
[1760030400774,1.7816432,120360.0,120350.0,0.09045668]
[1760030400992,1.8437793,120360.0,120350.0,0.09045668]
[1760030401202,1.75771537,120360.0,120350.0,0.09045668]
[1760030401450,2.19265724,120360.0,120350.0,0.09045668]
[1760030401677,0.91343057,120360.0,120350.0,0.09045668]
[1760030401900,0.5495367,120360.0,120350.0,0.52539855]
[1760030402321,0.5495367,120360.0,120350.0,0.71819061]
[1760030402322,0.5470867,120360.0,120350.0,0.71819061]
[1760030402533,0.5480867,120360.0,120350.0,0.71819061]
[1760030402978,0.38191854,120360.0,120350.0,0.88437257]
[1760030403188,0.5470867,120360.0,120350.0,0.88437257]
[1760030403648,0.3080867,120360.0,120350.0,0.72707248]
[1760030403869,0.5508267,120360.0,120350.0,0.71819061]
[1760030404085,0.5480867,120360.0,120350.0,0.71819061]
[1760030404762,0.5508267,120360.0,120350.0,0.71819061]
[1760030404969,0.5508267,120360.0,120350.0,0.65657061]
[1760030405359,0.5508267,120360.0,120350.0,0.60852061]
[1760030405563,0.5508267,120360.0,120350.0,0.17357874]
[1760030405764,0.5480867,120360.0,120350.0,0.28600874]
[1760030405966,0.5508267,120360.0,120350.0,0.4521907]
[1760030406170,0.5480867,120360.0,120350.0,0.4521907]
[1760030406744,0.5480467,120360.0,120350.0,0.4521907]
[1760030406960,0.5480467,120360.0,120350.0,0.28600874]